[Event "9th RTU Rapid 2019"]
[Site "Riga"]
[Date "2019.08.04"]
[Round "2.31"]
[White "Germanovs, Georgijs"]
[Black "Low, Zhen Yu Cyrus"]
[Result "0-1"]
[WhiteElo "1911"]
[BlackElo "2169"]
[PlyCount "118"]
[EventDate "2019.08.05"]
[EventType "swiss"]
[EventCountry "LAT"]
[TimeControl "5400+30"]
[WhiteClock "0:11:50"]
[BlackClock "0:02:42"]

1. e4 {[%emt 1:15:23]} c5 {[%emt 1:15:28]} 2. d4 {[%emt 0:00:32]} cxd4 {[%emt 0:00:27]} 3. c3 {[%emt 0:00:32]} dxc3 {[%emt 0:00:27]} 4. Nxc3 {[%emt 0:00:35]} Nc6 {[%emt 0:00:28]} 5. Nf3 {[%emt 0:00:36]} a6 {[%emt 0:00:28]} 6. Bc4 {[%emt 0:00:35]} e6 {[%emt 0:00:27]} 7. Bf4 {[%emt 0:00:35]} Nge7 {[%emt 0:00:35]} 8. Bd6 {[%emt 0:01:04]} Ng6 {[%emt 0:00:28]} 9. Bxf8 {[%emt 0:00:46]} Nxf8 {[%emt 0:00:29]} 10. Qd6 {[%emt 0:00:50]} Qe7 {[%emt 0:00:31]} 11. Qc7 {[%emt 0:01:10]} d6 {[%emt 0:00:27]} 12. Qxe7+ {[%emt 0:00:55]} Kxe7 {[%emt 0:00:34]} 13. O-O-O {[%emt 0:00:36]} Ng6 {[%emt 0:00:36]} 14. Rd2 {[%emt 0:00:58]} b5 {[%emt 0:00:32]} 15. Bb3 {[%emt 0:00:39]} Bb7 {[%emt 0:00:28]} 16. Rhd1 {[%emt 0:01:05]} Rhd8 {[%emt 0:00:35]} 17. Kb1 {[%emt 0:01:09]} h6 {[%emt 0:00:32]} 18. Ne2 {[%emt 0:01:07]} Rac8 {[%emt 0:00:31]} 19. Ng3 {[%emt 0:01:00]} Nf4 {[%emt 0:00:39]} 20. a4 {[%emt 0:01:04]} Na5 {[%emt 0:00:36]} 21. Bc2 {[%emt 0:00:37]} Nc4 {[%emt 0:00:31]} 22. Rd4 {[%emt 0:00:42]} Nxg2 {[%emt 0:00:42]} 23. Ne2 {[%emt 0:01:51]} Ne5 {[%emt 0:01:19]} 24. Nxe5 {[%emt 0:01:04]} dxe5 {[%emt 0:00:27]} 25. Rxd8 {[%emt 0:00:42]} Rxd8 {[%emt 0:00:27]} 26. Rg1 {[%emt 0:00:42]} Nf4 {[%emt 0:00:50]} 27. Nxf4 {[%emt 0:00:53]} exf4 {[%emt 0:00:27]} 28. Rxg7 {[%emt 0:00:27]} Rd2 {[%emt 0:00:26]} 29. e5 {[%emt 0:01:01]} Rxf2 {[%emt 0:01:25]} 30. Bg6 {[%emt 0:00:36]} Ke8 {[%emt 0:00:33]} 31. Rg8+ {[%emt 0:00:53]} Kd7 {[%emt 0:01:03]} 32. Rg7 {[%emt 0:00:56]} Bd5 {[%emt 0:00:56]} 33. Rxf7+ {[%emt 0:00:53]} Kc6 {[%emt 0:00:27]} 34. a5 {[%emt 0:01:10]} f3 {[%emt 0:00:35]} 35. b4 {[%emt 0:00:32]} Rg2 {[%emt 0:00:48]} 36. Bd3 {[%emt 0:01:15]} Rg4 {[%emt 0:00:49]} 37. Ra7 {[%emt 0:00:46]} Rxb4+ {[%emt 0:00:27]} 38. Kc1 {[%emt 0:00:30]} f2 {[%emt 0:00:35]} 39. Rxa6+ {[%emt 0:00:27]} Kb7 {[%emt 0:00:30]} 40. Rb6+ {[%emt 0:00:31]} Kc7 {[%emt 0:00:26]} 41. Ra6 {[%emt 0:00:37]} Bc4 {[%emt 0:00:35]} 42. Ra7+ {[%emt 0:00:41]} Kb8 {[%emt 0:00:27]} 43. Rf7 {[%emt 0:00:27]} Bxd3 {[%emt 0:00:26]} 44. Rxf2 {[%emt 0:00:26]} Rb1+ {[%emt 0:00:26]} 45. Kd2 {[%emt 0:00:30]} Rb2+ {[%emt 0:00:26]} 46. Ke3 {[%emt 0:00:26]} Rxf2 {[%emt 0:00:27]} 47. Kxf2 {[%emt 0:00:26]} b4 {[%emt 0:00:25]} 48. Ke3 {[%emt 0:00:27]} Bf5 {[%emt 0:00:28]} 49. Kd4 {[%emt 0:00:27]} b3 {[%emt 0:00:27]} 50. Kc3 {[%emt 0:00:27]} Bc2 {[%emt 0:00:26]} 51. h3 {[%emt 0:00:37]} Ka7 {[%emt 0:00:27]} 52. h4 {[%emt 0:00:27]} Ka6 {[%emt 0:00:26]} 53. h5 {[%emt 0:00:34]} Kxa5 {[%emt 0:00:26]} 54. Kb2 {[%emt 0:00:26]} Kb4 {[%emt 0:00:28]} 55. Ka1 {[%emt 0:00:26]} Kc4 {[%emt 0:00:28]} 56. Kb2 {[%emt 0:00:26]} Kd5 {[%emt 0:00:25]} 57. Kc3 {[%emt 0:00:27]} Kxe5 {[%emt 0:00:27]} 58. Kb4 {[%emt 0:00:26]} b2 {[%emt 0:00:27]} 59. Ka3 {[%emt 0:00:26]} b1=R {[%emt 0:00:32]} 0-1

[Event "9th RTU Rapid 2019"]
[Site "Riga"]
[Date "2019.08.04"]
[Round "2.32"]
[White "Alvarado Ascanio, Francisco"]
[Black "Korolev, Alexandr"]
[Result "1-0"]
[WhiteElo "2166"]
[BlackElo "2102"]
[PlyCount "73"]
[EventDate "2019.08.05"]
[EventType "swiss"]
[EventCountry "LAT"]
[TimeControl "5400+30"]
[WhiteClock "0:07:01"]
[BlackClock "0:03:56"]

1. d4 {[%emt 1:15:25]} d6 {[%emt 1:15:23]} 2. e4 {[%emt 0:00:27]} Nf6 {[%emt 0:00:27]} 3. Nc3 {[%emt 0:00:26]} e5 {[%emt 0:00:26]} 4. Nge2 {[%emt 0:01:14]} Nbd7 {[%emt 0:00:33]} 5. g3 {[%emt 0:00:31]} Be7 {[%emt 0:00:27]} 6. Bg2 {[%emt 0:00:26]} O-O {[%emt 0:00:28]} 7. O-O {[%emt 0:00:30]} c6 {[%emt 0:00:28]} 8. h3 {[%emt 0:00:27]} Qc7 {[%emt 0:00:43]} 9. a4 {[%emt 0:00:38]} a5 {[%emt 0:00:26]} 10. b3 {[%emt 0:00:49]} b6 {[%emt 0:00:56]} 11. Ba3 {[%emt 0:00:52]} Re8 {[%emt 0:00:39]} 12. Qd2 {[%emt 0:00:27]} Ba6 {[%emt 0:00:31]} 13. Rfe1 {[%emt 0:00:54]} Rad8 {[%emt 0:00:40]} 14. Rad1 {[%emt 0:00:53]} exd4 {[%emt 0:00:52]} 15. Nxd4 {[%emt 0:00:37]} Nc5 {[%emt 0:01:03]} 16. Bb2 {[%emt 0:01:05]} Bf8 {[%emt 0:01:03]} 17. Nxc6 {[%emt 0:02:59]} Qxc6 {[%emt 0:00:27]} 18. e5 {[%emt 0:00:26]} d5 {[%emt 0:00:26]} 19. exf6 {[%emt 0:00:29]} Rxe1+ {[%emt 0:00:48]} 20. Qxe1 {[%emt 0:01:50]} Qxf6 {[%emt 0:00:26]} 21. Rxd5 {[%emt 0:00:40]} Rxd5 {[%emt 0:00:54]} 22. Bxd5 {[%emt 0:00:27]} Ne6 {[%emt 0:01:16]} 23. Nd1 {[%emt 0:01:57]} Qf5 {[%emt 0:00:26]} 24. Qe4 {[%emt 0:00:59]} Qxh3 {[%emt 0:00:40]} 25. Ne3 {[%emt 0:00:59]} h5 {[%emt 0:03:12]} 26. c4 {[%emt 0:01:11]} Bc8 {[%emt 0:01:55]} 27. Nf5 {[%emt 0:01:36]} Ng5 {[%emt 0:00:54]} 28. Nh6+ {[%emt 0:00:50]} Kh8 {[%emt 0:00:41]} 29. Nxf7+ {[%emt 0:00:03]} Nxf7 30. Bxf7 Qf5 {[%emt 0:00:11]} 31. Qe8 {[%emt 0:00:31]} Qb1+ 32. Kh2 {[%emt 0:00:12]} Qxb2 {[%emt 0:00:04]} 33. Qxf8+ {[%emt 0:00:20]} Kh7 34. Qg8+ {[%emt 0:00:04]} Kh6 {[%emt 0:00:01]} 35. Qh8+ Kg5 {[%emt 0:00:01]} 36. Qxh5+ Kf6 {[%emt 0:00:02]} 37. Qf3+ {[%emt 0:00:07]} 1-0

[Event "9th RTU Rapid 2019"]
[Site "Riga"]
[Date "2019.08.04"]
[Round "2.33"]
[White "Ivbulis, Martins"]
[Black "Ciolek, Andreas"]
[Result "1/2-1/2"]
[WhiteElo "1768"]
[BlackElo "2158"]
[PlyCount "109"]
[EventDate "2019.08.05"]
[EventType "swiss"]
[EventCountry "LAT"]
[TimeControl "5400+30"]
[WhiteClock "0:00:14"]
[BlackClock "0:00:12"]

1. d4 {[%emt 1:15:22]} Nf6 {[%emt 1:15:22]} 2. Nc3 {[%emt 0:00:26]} d5 {[%emt 0:00:28]} 3. Bf4 {[%emt 0:00:29]} g6 {[%emt 0:00:27]} 4. e3 {[%emt 0:00:28]} Bg7 {[%emt 0:00:29]} 5. h4 {[%emt 0:00:32]} h5 {[%emt 0:00:27]} 6. Nf3 {[%emt 0:00:35]} O-O {[%emt 0:00:29]} 7. Be2 {[%emt 0:00:30]} c5 {[%emt 0:00:29]} 8. Ne5 {[%emt 0:00:29]} Nc6 {[%emt 0:01:00]} 9. f3 {[%emt 0:01:58]} cxd4 {[%emt 0:00:32]} 10. exd4 {[%emt 0:02:23]} Qb6 {[%emt 0:01:04]} 11. Nxc6 {[%emt 0:00:40]} Qxc6 {[%emt 0:00:45]} 12. Qd2 {[%emt 0:00:34]} a6 {[%emt 0:00:32]} 13. O-O-O {[%emt 0:01:15]} b5 {[%emt 0:00:33]} 14. Rde1 {[%emt 0:01:07]} b4 {[%emt 0:00:32]} 15. Nd1 {[%emt 0:00:26]} a5 {[%emt 0:00:45]} 16. Kb1 {[%emt 0:00:38]} Bf5 {[%emt 0:00:48]} 17. Bd3 {[%emt 0:01:00]} Bxd3 {[%emt 0:00:32]} 18. Qxd3 {[%emt 0:00:26]} a4 {[%emt 0:00:39]} 19. Rxe7 {[%emt 0:00:49]} Rfc8 {[%emt 0:01:35]} 20. c3 {[%emt 0:02:21]} a3 {[%emt 0:00:39]} 21. cxb4 {[%emt 0:00:57]} axb2 {[%emt 0:00:53]} 22. Nxb2 {[%emt 0:00:26]} Bf8 {[%emt 0:00:47]} 23. Rc1 {[%emt 0:01:17]} Qb6 {[%emt 0:01:14]} 24. Rec7 {[%emt 0:01:02]} Rxc7 {[%emt 0:00:31]} 25. Bxc7 {[%emt 0:00:42]} Qxb4 {[%emt 0:00:26]} 26. Be5 {[%emt 0:00:49]} Nd7 {[%emt 0:00:39]} 27. Qb3 {[%emt 0:00:26]} Qd2 {[%emt 0:00:51]} 28. Qxd5 {[%emt 0:01:13]} Nb6 {[%emt 0:01:53]} 29. Qb3 {[%emt 0:00:43]} Qa5 {[%emt 0:05:20]} 30. Bc7 {[%emt 0:01:04]} Ra6 {[%emt 0:00:52]} 31. Nc4 {[%emt 0:00:35]} Qf5+ {[%emt 0:00:31]} 32. Ka1 {[%emt 0:00:59]} Nd5 {[%emt 0:00:38]} 33. Ne3 {[%emt 0:00:55]} Nxe3 {[%emt 0:00:36]} 34. Qxe3 {[%emt 0:00:26]} Qd5 {[%emt 0:00:58]} 35. Qf2 {[%emt 0:00:46]} Ra4 {[%emt 0:01:16]} 36. Be5 {[%emt 0:00:32]} Qb7 {[%emt 0:00:50]} 37. Rc7 {[%emt 0:01:28]} Qb3 {[%emt 0:00:37]} 38. Qc2 {[%emt 0:00:30]} Qb4 {[%emt 0:01:04]} 39. Rc8 {[%emt 0:00:34]} Qe1+ {[%emt 0:00:39]} 40. Qc1 {[%emt 0:00:26]} Qa5 {[%emt 0:00:38]} 41. Rxf8+ {[%emt 0:01:09]} Kxf8 {[%emt 0:00:26]} 42. Qc8+ {[%emt 0:00:26]} Ke7 {[%emt 0:00:27]} 43. Qb7+ {[%emt 0:00:26]} Ke8 {[%emt 0:00:55]} 44. Qc6+ {[%emt 0:00:37]} Kf8 {[%emt 0:00:36]} 45. Qd6+ {[%emt 0:00:40]} Ke8 {[%emt 0:00:29]} 46. Qb8+ {[%emt 0:00:42]} Qd8 {[%emt 0:00:29]} 47. Qb5+ {[%emt 0:00:04]} Qd7 48. Qb8+ {[%emt 0:01:06]} Ke7 {[%emt 0:00:50]} 49. Qb3 {[%emt 0:00:51]} Ra7 {[%emt 0:00:33]} 50. Qb4+ {[%emt 0:00:27]} Ke8 {[%emt 0:00:35]} 51. Qb8+ {[%emt 0:00:27]} Ke7 {[%emt 0:00:28]} 52. Qb4+ {[%emt 0:00:26]} Ke6 {[%emt 0:00:34]} 53. Qb6+ {[%emt 0:00:34]} Ke7 {[%emt 0:00:34]} 54. Qb4+ {[%emt 0:00:28]} Kd8 {[%emt 0:00:30]} 55. Qb8+ {[%emt 0:00:37]} 1/2-1/2

[Event "9th RTU Rapid 2019"]
[Site "Riga"]
[Date "2019.08.04"]
[Round "3.1"]
[White "Kretainis, Kristaps"]
[Black "Svane, Rasmus"]
[Result "0-1"]
[WhiteElo "2252"]
[BlackElo "2612"]
[PlyCount "48"]
[EventDate "2019.08.05"]
[EventType "swiss"]
[EventCountry "LAT"]
[TimeControl "5400+30"]
[WhiteClock "0:06:51"]
[BlackClock "0:12:25"]

1. e4 {[%emt 1:15:21]} c6 {[%emt 1:15:22]} 2. d4 {[%emt 0:00:27]} d5 {[%emt 0:00:27]} 3. Nd2 {[%emt 0:00:25]} dxe4 {[%emt 0:00:28]} 4. Nxe4 {[%emt 0:00:26]} Nf6 {[%emt 0:00:32]} 5. Nxf6+ {[%emt 0:00:26]} exf6 {[%emt 0:00:27]} 6. c3 {[%emt 0:00:27]} Bd6 {[%emt 0:00:29]} 7. Bd3 {[%emt 0:00:26]} O-O {[%emt 0:00:30]} 8. Qc2 {[%emt 0:00:26]} Re8+ {[%emt 0:00:27]} 9. Ne2 {[%emt 0:00:26]} h5 {[%emt 0:00:28]} 10. h3 {[%emt 0:00:35]} h4 {[%emt 0:01:38]} 11. Bd2 {[%emt 0:00:32]} Be6 {[%emt 0:01:07]} 12. c4 {[%emt 0:00:36]} Nd7 {[%emt 0:01:15]} 13. Bc3 {[%emt 0:00:33]} Rc8 {[%emt 0:00:42]} 14. Qd2 {[%emt 0:01:49]} a6 {[%emt 0:00:57]} 15. O-O-O {[%emt 0:00:43]} b5 {[%emt 0:02:48]} 16. c5 {[%emt 0:00:26]} Bc7 {[%emt 0:00:59]} 17. Nf4 {[%emt 0:00:39]} Bxa2 {[%emt 0:00:50]} 18. Bf5 {[%emt 0:00:58]} a5 {[%emt 0:00:56]} 19. d5 {[%emt 0:00:38]} Nxc5 {[%emt 0:00:49]} 20. Bc2 {[%emt 0:00:45]} b4 {[%emt 0:00:54]} 21. Bd4 {[%emt 0:00:35]} Ne4 {[%emt 0:00:37]} 22. Bxe4 {[%emt 0:00:39]} Rxe4 {[%emt 0:00:26]} 23. d6 {[%emt 0:00:27]} Qxd6 {[%emt 0:00:49]} 24. Nh5 {[%emt 0:00:50]} Qd5 {[%emt 0:01:12]} 0-1

[Event "9th RTU Rapid 2019"]
[Site "Riga"]
[Date "2019.08.04"]
[Round "3.2"]
[White "Pultinevicius, Paulius"]
[Black "Reizniece-Ozola, Dana"]
[Result "1-0"]
[WhiteElo "2501"]
[BlackElo "2261"]
[PlyCount "63"]
[EventDate "2019.08.05"]
[EventType "swiss"]
[EventCountry "LAT"]
[TimeControl "5400+30"]
[WhiteClock "0:03:22"]
[BlackClock "0:06:52"]

1. d4 {[%emt 1:15:21]} Nf6 {[%emt 1:15:21]} 2. c4 {[%emt 0:00:26]} g6 {[%emt 0:00:26]} 3. Nc3 {[%emt 0:00:34]} Bg7 {[%emt 0:00:27]} 4. e4 {[%emt 0:00:38]} d6 {[%emt 0:00:26]} 5. h3 {[%emt 0:00:27]} O-O {[%emt 0:00:37]} 6. Nf3 {[%emt 0:00:33]} c5 {[%emt 0:00:31]} 7. d5 {[%emt 0:00:29]} b5 {[%emt 0:00:38]} 8. cxb5 {[%emt 0:00:35]} a6 {[%emt 0:00:26]} 9. a4 {[%emt 0:00:43]} e6 {[%emt 0:01:18]} 10. Be3 {[%emt 0:00:45]} exd5 {[%emt 0:00:39]} 11. exd5 {[%emt 0:00:26]} Re8 {[%emt 0:00:33]} 12. Bd3 {[%emt 0:01:10]} Bb7 {[%emt 0:01:40]} 13. O-O {[%emt 0:00:27]} Nbd7 {[%emt 0:00:46]} 14. Qb3 {[%emt 0:00:36]} Nb6 {[%emt 0:00:55]} 15. bxa6 {[%emt 0:00:28]} Bxa6 {[%emt 0:00:28]} 16. Bxa6 {[%emt 0:00:38]} Rxa6 {[%emt 0:00:26]} 17. Nd2 {[%emt 0:00:52]} Qa8 {[%emt 0:00:30]} 18. Nc4 {[%emt 0:01:07]} Nbxd5 {[%emt 0:00:39]} 19. Nb5 {[%emt 0:00:51]} Nxe3 {[%emt 0:04:50]} 20. Nxe3 {[%emt 0:00:27]} Qb8 {[%emt 0:01:08]} 21. Rfd1 {[%emt 0:01:06]} Re4 {[%emt 0:00:28]} 22. Qc2 {[%emt 0:01:39]} Rb4 {[%emt 0:00:47]} 23. Ra3 {[%emt 0:00:44]} Ne4 {[%emt 0:01:21]} 24. Nd5 {[%emt 0:00:38]} Rxb2 {[%emt 0:00:44]} 25. Qxe4 {[%emt 0:00:38]} Rxb5 {[%emt 0:00:26]} 26. Nc7 {[%emt 0:02:35]} Rbb6 {[%emt 0:01:35]} 27. Nxa6 {[%emt 0:00:30]} Rxa6 {[%emt 0:00:50]} 28. a5 {[%emt 0:00:32]} Bd4 {[%emt 0:00:58]} 29. Rb1 {[%emt 0:00:55]} Qd8 {[%emt 0:00:29]} 30. Qb7 {[%emt 0:01:23]} Rxa5 {[%emt 0:00:16]} 31. Qb8 {[%emt 0:00:28]} Bf6 {[%emt 0:01:30]} 32. Rxa5 {[%emt 0:00:27]} 1-0

[Event "9th RTU Rapid 2019"]
[Site "Riga"]
[Date "2019.08.04"]
[Round "3.3"]
[White "Wagner, Dennis"]
[Black "Wedda, Dries"]
[Result "1-0"]
[WhiteElo "2473"]
[BlackElo "2234"]
[PlyCount "57"]
[EventDate "2019.08.05"]
[EventType "swiss"]
[EventCountry "LAT"]
[TimeControl "5400+30"]
[WhiteClock "0:00:38"]
[BlackClock "0:01:51"]

1. d4 {[%emt 1:15:22]} Nf6 {[%emt 1:15:28]} 2. c4 {[%emt 0:00:27]} e6 {[%emt 0:00:36]} 3. Nc3 {[%emt 0:00:26]} Bb4 {[%emt 0:00:36]} 4. e3 {[%emt 0:00:27]} O-O {[%emt 0:00:28]} 5. Bd2 {[%emt 0:00:26]} d5 {[%emt 0:01:28]} 6. Nf3 {[%emt 0:00:30]} c5 {[%emt 0:01:09]} 7. a3 {[%emt 0:00:29]} cxd4 {[%emt 0:00:54]} 8. axb4 {[%emt 0:00:32]} dxc3 {[%emt 0:00:27]} 9. Bxc3 {[%emt 0:00:40]} Ne4 {[%emt 0:00:48]} 10. Qc2 {[%emt 0:01:35]} Nxc3 {[%emt 0:00:34]} 11. Qxc3 {[%emt 0:00:43]} dxc4 {[%emt 0:00:32]} 12. Bxc4 {[%emt 0:00:27]} b6 {[%emt 0:00:36]} 13. O-O {[%emt 0:01:13]} Bb7 {[%emt 0:00:26]} 14. Rfd1 {[%emt 0:00:26]} Qe7 {[%emt 0:00:48]} 15. Be2 {[%emt 0:01:18]} Nc6 {[%emt 0:01:33]} 16. b5 {[%emt 0:00:32]} Nb4 {[%emt 0:00:31]} 17. Rd4 {[%emt 0:04:00]} Nd5 {[%emt 0:01:56]} 18. Qd2 {[%emt 0:00:26]} Nf6 {[%emt 0:00:52]} 19. Ne5 {[%emt 0:01:01]} Qc5 {[%emt 0:02:51]} 20. Nc6 {[%emt 0:02:06]} Qg5 {[%emt 0:02:21]} 21. h4 {[%emt 0:01:21]} Qh6 {[%emt 0:00:48]} 22. Bf3 {[%emt 0:01:11]} Kh8 {[%emt 0:00:39]} 23. Qb4 {[%emt 0:00:26]} Nd5 {[%emt 0:02:11]} 24. Qd6 {[%emt 0:01:36]} Bxc6 {[%emt 0:01:06]} 25. bxc6 {[%emt 0:00:27]} Rac8 {[%emt 0:01:37]} 26. Rxa7 {[%emt 0:00:47]} b5 {[%emt 0:00:54]} 27. c7 {[%emt 0:01:03]} Nxe3 {[%emt 0:00:44]} 28. Qxf8+ {[%emt 0:02:16]} Rxf8 {[%emt 0:00:29]} 29. Rd8 {[%emt 0:00:26]} 1-0

[Event "9th RTU Rapid 2019"]
[Site "Riga"]
[Date "2019.08.04"]
[Round "3.4"]
[White "Bracker, Arne"]
[Black "Kantans, Toms"]
[Result "0-1"]
[WhiteElo "2227"]
[BlackElo "2471"]
[PlyCount "32"]
[EventDate "2019.08.05"]
[EventType "swiss"]
[EventCountry "LAT"]
[TimeControl "5400+30"]
[WhiteClock "0:08:45"]
[BlackClock "0:01:56"]

1. e4 {[%emt 1:15:23]} c5 {[%emt 1:15:21]} 2. Nf3 {[%emt 0:00:27]} Nf6 {[%emt 0:00:27]} 3. e5 {[%emt 0:00:31]} Nd5 {[%emt 0:00:28]} 4. Nc3 {[%emt 0:00:30]} e6 {[%emt 0:00:28]} 5. Nxd5 {[%emt 0:02:25]} exd5 {[%emt 0:00:27]} 6. d4 {[%emt 0:00:48]} Nc6 {[%emt 0:00:28]} 7. dxc5 {[%emt 0:01:07]} Bxc5 {[%emt 0:00:28]} 8. Qxd5 {[%emt 0:00:33]} Qb6 {[%emt 0:00:27]} 9. Bc4 {[%emt 0:01:14]} Bxf2+ {[%emt 0:00:30]} 10. Ke2 {[%emt 0:00:36]} O-O {[%emt 0:00:28]} 11. Ng5 {[%emt 0:04:09]} d6 {[%emt 0:02:38]} 12. Qe4 {[%emt 0:02:53]} Bf5 {[%emt 0:02:46]} 13. Qf4 {[%emt 0:01:31]} Bc5 {[%emt 0:02:21]} 14. Nxf7 {[%emt 0:01:20]} Nd4+ {[%emt 0:00:52]} 15. Kd1 {[%emt 0:02:09]} Bxc2+ {[%emt 0:00:36]} 16. Ke1 {[%emt 0:00:28]} Qb4+ {[%emt 0:00:30]} 0-1

[Event "9th RTU Rapid 2019"]
[Site "Riga"]
[Date "2019.08.04"]
[Round "3.5"]
[White "Vishnu Prasanna. V"]
[Black "Vedrickas, Tautvydas"]
[Result "1-0"]
[WhiteElo "2465"]
[BlackElo "2231"]
[PlyCount "56"]
[EventDate "2019.08.05"]
[EventType "swiss"]
[EventCountry "LAT"]
[TimeControl "5400+30"]
[WhiteClock "0:15:05"]
[BlackClock "0:03:40"]

1. d4 {[%emt 1:15:23]} g6 {[%emt 1:15:27]} 2. e4 {[%emt 0:00:28]} Bg7 {[%emt 0:00:27]} 3. Nf3 {[%emt 0:00:30]} d6 {[%emt 0:00:29]} 4. Bc4 {[%emt 0:00:47]} e6 {[%emt 0:01:09]} 5. O-O {[%emt 0:00:41]} a6 {[%emt 0:00:29]} 6. Qe2 {[%emt 0:00:38]} h6 {[%emt 0:01:11]} 7. Bb3 {[%emt 0:00:39]} Ne7 {[%emt 0:00:34]} 8. c4 {[%emt 0:00:43]} O-O {[%emt 0:00:47]} 9. Nc3 {[%emt 0:00:43]} Nd7 {[%emt 0:01:34]} 10. Bc2 {[%emt 0:01:17]} e5 {[%emt 0:00:39]} 11. dxe5 {[%emt 0:00:33]} dxe5 {[%emt 0:01:11]} 12. Be3 {[%emt 0:00:56]} f5 {[%emt 0:02:28]} 13. Rad1 {[%emt 0:01:05]} Qe8 {[%emt 0:00:56]} 14. exf5 {[%emt 0:02:08]} gxf5 {[%emt 0:00:31]} 15. Bc1 {[%emt 0:01:32]} e4 {[%emt 0:04:34]} 16. Nd4 {[%emt 0:01:03]} Ne5 {[%emt 0:00:29]} 17. Nd5 {[%emt 0:01:26]} Nxd5 {[%emt 0:00:39]} 18. cxd5 {[%emt 0:00:26]} Qg6 {[%emt 0:00:59]} 19. Bf4 {[%emt 0:00:33]} Kh8 {[%emt 0:01:30]} 20. Kh1 {[%emt 0:00:49]} Bd7 {[%emt 0:00:40]} 21. f3 {[%emt 0:00:43]} exf3 {[%emt 0:00:43]} 22. gxf3 {[%emt 0:01:58]} Rae8 {[%emt 0:00:47]} 23. Rg1 {[%emt 0:00:36]} Qf6 {[%emt 0:00:37]} 24. Rxg7 {[%emt 0:02:20]} Qxg7 {[%emt 0:00:31]} 25. Ne6 {[%emt 0:00:34]} Ng6 {[%emt 0:00:45]} 26. Bd2 {[%emt 0:00:27]} Qxb2 {[%emt 0:01:55]} 27. Qd3 {[%emt 0:00:29]} Kh7 {[%emt 0:01:05]} 28. Qe3 {[%emt 0:00:53]} Bxe6 {[%emt 0:00:00]} 1-0

[Event "9th RTU Rapid 2019"]
[Site "Riga"]
[Date "2019.08.04"]
[Round "3.6"]
[White "Low, Zhen Yu Cyrus"]
[Black "Krivonosov, Oleg"]
[Result "1/2-1/2"]
[WhiteElo "2169"]
[BlackElo "2445"]
[PlyCount "79"]
[EventDate "2019.08.05"]
[EventType "swiss"]
[EventCountry "LAT"]
[TimeControl "5400+30"]
[WhiteClock "0:08:40"]
[BlackClock "0:06:12"]

1. e4 {[%emt 1:15:22]} e5 {[%emt 1:15:22]} 2. Nf3 {[%emt 0:00:27]} Nc6 {[%emt 0:00:26]} 3. Bc4 {[%emt 0:00:25]} Bc5 {[%emt 0:00:27]} 4. O-O {[%emt 0:00:32]} d6 {[%emt 0:00:26]} 5. c3 {[%emt 0:00:37]} Nf6 {[%emt 0:00:27]} 6. d3 {[%emt 0:00:26]} h6 {[%emt 0:00:28]} 7. Nbd2 {[%emt 0:00:27]} O-O {[%emt 0:00:36]} 8. h3 {[%emt 0:00:26]} a6 {[%emt 0:00:30]} 9. Bb3 {[%emt 0:00:26]} Re8 {[%emt 0:00:28]} 10. Re1 {[%emt 0:00:27]} Be6 {[%emt 0:00:27]} 11. Bc2 {[%emt 0:00:26]} d5 {[%emt 0:00:34]} 12. exd5 {[%emt 0:00:26]} Bxd5 {[%emt 0:00:32]} 13. Nf1 {[%emt 0:00:28]} e4 {[%emt 0:00:50]} 14. dxe4 {[%emt 0:00:30]} Bxe4 {[%emt 0:00:29]} 15. Bxe4 {[%emt 0:00:44]} Qxd1 {[%emt 0:01:15]} 16. Rxd1 {[%emt 0:00:27]} Nxe4 {[%emt 0:00:43]} 17. Be3 {[%emt 0:00:32]} Rad8 {[%emt 0:00:38]} 18. Bxc5 {[%emt 0:00:38]} Nxc5 {[%emt 0:00:27]} 19. Ne3 {[%emt 0:00:26]} Na4 {[%emt 0:01:03]} 20. Rab1 {[%emt 0:01:12]} Rxd1+ {[%emt 0:00:30]} 21. Rxd1 {[%emt 0:00:38]} Rd8 {[%emt 0:00:40]} 22. Rxd8+ {[%emt 0:01:25]} Nxd8 {[%emt 0:00:27]} 23. Nd1 {[%emt 0:00:26]} Kf8 {[%emt 0:00:32]} 24. Kf1 {[%emt 0:00:26]} Ke7 {[%emt 0:00:25]} 25. Ke2 {[%emt 0:00:29]} Nc6 {[%emt 0:00:40]} 26. Ke3 {[%emt 0:01:05]} Nb6 {[%emt 0:01:06]} 27. Ke4 {[%emt 0:01:16]} Nd7 {[%emt 0:01:18]} 28. Kd3 {[%emt 0:01:47]} Nc5+ {[%emt 0:01:09]} 29. Ke3 {[%emt 0:00:31]} Ne6 {[%emt 0:00:39]} 30. b3 {[%emt 0:01:11]} f5 {[%emt 0:00:46]} 31. Nb2 {[%emt 0:00:47]} g5 {[%emt 0:00:48]} 32. Nd3 {[%emt 0:00:37]} Kf6 {[%emt 0:00:47]} 33. g3 {[%emt 0:00:58]} b6 {[%emt 0:00:31]} 34. Nd2 {[%emt 0:00:47]} Ne7 {[%emt 0:00:40]} 35. c4 {[%emt 0:00:28]} Nc6 {[%emt 0:00:32]} 36. Nb1 {[%emt 0:01:09]} Ncd4 {[%emt 0:01:28]} 37. Nb4 {[%emt 0:01:03]} a5 {[%emt 0:00:35]} 38. Nd5+ {[%emt 0:00:27]} Ke5 {[%emt 0:00:42]} 39. f4+ {[%emt 0:01:49]} gxf4+ {[%emt 0:00:27]} 40. gxf4+ {[%emt 0:01:05]} 1/2-1/2

[Event "9th RTU Rapid 2019"]
[Site "Riga"]
[Date "2019.08.04"]
[Round "3.7"]
[White "Saduakassova, Dinara"]
[Black "Damen, Jip"]
[Result "1-0"]
[WhiteElo "2437"]
[BlackElo "2179"]
[PlyCount "79"]
[EventDate "2019.08.05"]
[EventType "swiss"]
[EventCountry "LAT"]
[TimeControl "5400+30"]
[WhiteClock "0:01:00"]
[BlackClock "0:03:35"]

1. d4 {[%emt 1:15:23]} d6 {[%emt 1:15:24]} 2. e4 {[%emt 0:00:27]} Nf6 {[%emt 0:00:26]} 3. Nc3 {[%emt 0:00:26]} g6 {[%emt 0:00:25]} 4. Be3 {[%emt 0:00:26]} Bg7 {[%emt 0:00:27]} 5. h3 {[%emt 0:00:31]} O-O {[%emt 0:00:29]} 6. Qd2 {[%emt 0:00:27]} e5 {[%emt 0:00:26]} 7. dxe5 {[%emt 0:01:14]} dxe5 {[%emt 0:00:26]} 8. O-O-O {[%emt 0:00:26]} Qe7 {[%emt 0:01:12]} 9. Nf3 {[%emt 0:00:38]} c6 {[%emt 0:00:57]} 10. Qd6 {[%emt 0:01:21]} Qxd6 {[%emt 0:01:05]} 11. Rxd6 {[%emt 0:00:26]} Be6 {[%emt 0:00:59]} 12. Ng5 {[%emt 0:00:37]} Bd7 {[%emt 0:01:12]} 13. Rd2 {[%emt 0:01:12]} h6 {[%emt 0:01:33]} 14. Nf3 {[%emt 0:00:26]} Re8 {[%emt 0:00:37]} 15. a3 {[%emt 0:01:13]} b5 {[%emt 0:01:29]} 16. Bc5 {[%emt 0:01:24]} Bf8 {[%emt 0:01:27]} 17. Bxf8 Kxf8 {[%emt 0:00:25]} 18. b3 {[%emt 0:03:38]} a5 {[%emt 0:00:32]} 19. Bd3 {[%emt 0:01:01]} Na6 {[%emt 0:00:36]} 20. Kb2 {[%emt 0:00:28]} Nc5 {[%emt 0:00:30]} 21. b4 {[%emt 0:01:18]} axb4 {[%emt 0:00:38]} 22. axb4 {[%emt 0:00:26]} Na4+ {[%emt 0:00:40]} 23. Nxa4 {[%emt 0:00:28]} Rxa4 {[%emt 0:00:26]} 24. c3 {[%emt 0:01:15]} Rea8 {[%emt 0:04:51]} 25. Rb1 {[%emt 0:01:12]} Ra2+ {[%emt 0:00:56]} 26. Kc1 {[%emt 0:00:25]} R2a3 {[%emt 0:00:26]} 27. Rc2 {[%emt 0:01:13]} Be6 {[%emt 0:01:06]} 28. Nxe5 {[%emt 0:00:28]} Bb3 {[%emt 0:00:28]} 29. Rcb2 {[%emt 0:00:52]} Ba2 {[%emt 0:01:06]} 30. Ra1 {[%emt 0:00:26]} Rxc3+ {[%emt 0:00:41]} 31. Rc2 {[%emt 0:01:13]} Rca3 {[%emt 0:00:52]} 32. Rxc6 {[%emt 0:00:43]} Be6 {[%emt 0:01:27]} 33. Rxa3 {[%emt 0:00:28]} Rxa3 {[%emt 0:00:26]} 34. Nxg6+ {[%emt 0:01:07]} Ke8 {[%emt 0:00:21]} 35. Nf4 {[%emt 0:00:27]} Ra1+ {[%emt 0:00:40]} 36. Kd2 {[%emt 0:00:28]} Ra2+ {[%emt 0:00:51]} 37. Ke3 {[%emt 0:00:29]} Ke7 {[%emt 0:00:46]} 38. Bxb5 {[%emt 0:00:40]} Rb2 {[%emt 0:00:36]} 39. Nxe6 {[%emt 0:00:34]} Rxb4 {[%emt 0:00:36]} 40. Nd4 {[%emt 0:00:29]} 1-0